Cogmind - Beta 16 @@@ ROGUE MODE // 2025.11.05 @ 08:22:17 Player: Scringis Result: Self-destructed Performance ------------- Evolutions (3) 1500 Regions Visited (4) 800 Robots Destroyed (57) 285 Value Destroyed (1836) 1836 Prototype IDs (7) 140 Alien Tech Used (0) 0 Bonus (0) 0 TOTAL SCORE: 4561 Bonus ------- None Cogmind --------- Core Integrity 207/700 Matter 22/300 Energy 67/290 System Corruption 5% Temperature Cool (0) Movement Core (200) Ox3 Location -7/Factory Parts ------- > --- POWER (1) -------- Improved Deuterium Engine > --- PROPULSION (3) --- (None) > --- UTILITY (5) ------ Armor Integrity Analyzer > --- WEAPON (4) ------- (None) > --- INVENTORY (5) ---- Armor Integrity Analyzer Rocket Launcher Plasma Cutter Peak State ------------ > --- POWER ------------ Enhanced Nuclear Core > --- PROPULSION ------- Light Treads Advanced Treads > --- UTILITY ---------- Cooling System Large Storage Unit > --- WEAPON ----------- Heavy Particle Gun Autogun Autogun Gauss Cannon > --- INVENTORY -------- Enhanced Nuclear Core Enhanced Nuclear Core Light Treads Titanium Leg Advanced ECM Suite Autogun Grenade Launcher Plasma Cutter [Rating: 26] Favorites ----------- Power Light Ion Engine Engine Light Ion Engine Power Core Enhanced Nuclear Core Propulsion Light Treads Treads Light Treads Leg Titanium Leg Utility Large Storage Unit Device Cooling System Storage Large Storage Unit Processor Armor Integrity Analyzer Weapon Autogun Energy Gun Heavy EM Pulse Gun Energy Cannon Advanced Beam Cannon Ballistic Gun Autogun Ballistic Cannon Gauss Cannon Launcher Grenade Launcher Build | -11 -10 -9 -8 -7 ------- Run | Yrd Mat Mat Mat Fac Slots Evolved 6 | . . 2 2 2 Power . | . . . . . Propulsion 1 | . . . . 1 Utility 3 | . . . 2 1 Weapon 2 | . . 2 . . Parts Attached 37 | 6 . 12 12 7 Power 7 | 1 . 1 3 2 Engine 3 | 1 . 1 . 1 Core 4 | . . . 3 1 Reactor . | . . . . . Propulsion 5 | 2 . . 2 1 Treads 4 | 2 . . 2 . Leg 1 | . . . . 1 Wheel . | . . . . . Hover . | . . . . . Flight . | . . . . . Utility 6 | 1 . 1 1 3 Device 2 | . . . 1 1 Storage 2 | 1 . 1 . . Processor 2 | . . . . 2 Hackware . | . . . . . Protection . | . . . . . Artifact . | . . . . . Weapon 19 | 2 . 10 6 1 Energy Gun 6 | . . 4 1 1 Energy Cannon 1 | . . . 1 . Ballistic Gun 10 | 2 . 6 2 . Ballistic Cannon 1 | . . . 1 . Launcher 1 | . . . 1 . Special Weapon . | . . . . . Impact Weapon . | . . . . . Slashing Weapon . | . . . . . Piercing Weapon . | . . . . . Special Melee Weapon . | . . . . . Unidentified Prototypes 7 | . . 3 4 . Parts Lost 24 | . . 2 18 4 Power 5 | . . 1 3 1 Propulsion 5 | . . . 4 1 Utility 2 | . . . 1 1 Weapon 12 | . . 1 10 1 Highest Loss Streak 8 | . . 2 8 3 To Critical Strikes . | . . . . . Average Backups 6 | 1 2 6 7 3 Power . | . 1 . 1 . Propulsion . | . . . 1 . Utility . | . . . . 1 Weapon 3 | . 1 4 3 1 Tool/Special . | . . . . . Unused Backups 5 | . . 1 1 3 Power 1 | . . . 1 . Propulsion . | . . . . . Utility 1 | . . . . 1 Weapon 2 | . . 1 . 1 Tool/Special 1 | . . . . 1 Average Slot Usage (%) 75 | . 85 85 75 31 Engine 6 | . 14 11 2 . Core 3 | . . . 6 5 Treads 17 | . 28 22 15 . Device 3 | . . . 8 6 Storage 9 | . 14 11 8 . Processor 1 | . . . . 11 Energy Gun 3 | . . 3 5 . Energy Cannon 1 | . . . 3 . Ballistic Gun 25 | . 28 37 19 . Ballistic Cannon 2 | . . . 5 . Peak Build Rating 26 | 6 6 14 26 21 Average Rating 14 | 4 6 10 21 17 On Entrance 5 | . 6 6 13 1 Avg Prop Armor Cover (%) . | . . . . . Naked Turns 8 | . . . 8 . Heaviest Build 47 | 11 11 35 47 11 Greatest Support 42 | 40 40 40 42 17 Greatest Overweight (x) 14 | . . . 14 3 Average Overweight (x) . | . . . . . Largest Inventory Capacity 15 | 8 8 15 15 5 Average Capacity 11 | 6 8 11 14 5 Most Carried 12 | 3 3 10 12 5 Average Carried 6 | 1 2 6 7 3 Final Capacity 15 | 8 8 15 5 5 Final Carried 8 | 1 3 8 5 3 Class Distribution -------------------- 69% | Gunner 30% | Mutant Dominant Class ---------------- Mutant | -10/Materials Gunner | -9/Materials Gunner | -8/Materials Mutant | -7/Factory Resources | -11 -10 -9 -8 -7 ----------- Run | Yrd Mat Mat Mat Fac Matter Collected 1611 | 214 118 624 655 . Remotely . | . . . . . Salvage Created 2319 | . 218 1128 973 . Parts 122 | . 7 61 54 . Haulers Intercepted 6 | . 1 4 1 . Recyclers Shooed . | . . . . . Parts Field Recycled . | . . . . . Retrieved Matter . | . . . . . Parts Self-Destructed . | . . . . . Prevented . | . . . . . Parts Restored . | . . . . . Kills | -11 -10 -9 -8 -7 ------- Run | Yrd Mat Mat Mat Fac Combat Hostiles Destroyed 49 | . 4 22 23 . Guns 39 | . 4 21 14 . Cannons 7 | . . . 7 . AOE 3 | . . 1 2 . Classes Destroyed 9 | . 2 3 4 . Worker 1 | . . . 1 . Hauler 6 | . 1 4 1 . Watcher 1 | . . 1 . . Swarmer 6 | . . 3 3 . Cutter 3 | . . . 3 . Grunt 28 | . 4 13 11 . Brawler 1 | . . . 1 . Sentry 9 | . . 6 3 . Specialist 2 | . . . 2 . Best Kill Streak 4 | . 2 4 3 . Combat Bots Only 3 | . 2 3 3 . Max Kills in Single Turn 2 | . 1 2 2 . Gunslinging 1 | . . 1 . . Exploded 1 | . . 1 1 . Melee . | . . . . . Uniques/NPCs Destroyed . | . . . . . Combat | -11 -10 -9 -8 -7 -------- Run | Yrd Mat Mat Mat Fac Hostile Shots Fired 356 | . 24 79 166 87 Missed 113 | . 9 21 49 34 Hits 243 | . 15 58 117 53 Melee 17 | . . 3 12 2 Projectile 226 | . 15 55 105 51 Critical Strikes 15 | . . 1 11 3 Part Disruptions 1 | . . . . 1 Damage Taken 4011 | . 170 756 2205 880 Core 1215 | . 89 108 525 493 Absorbed by Shields . | . . . . . Core Remaining (%) 60 | 100 64 73 4 . Volleys Fired 150 | . 18 62 70 . Largest 4 | . 2 4 4 . Hottest 186 | . 40 114 186 . Shots Fired 492 | . 36 240 216 . Gun 428 | . 36 240 152 . Cannon 62 | . . . 62 . Launcher 2 | . . . 2 . Special . | . . . . . Kinetic 402 | . 36 222 144 . Thermal 54 | . . . 54 . Explosive 2 | . . . 2 . Electromagnetic 34 | . . 18 16 . Robot Hit Streak 17 | . 11 11 17 . Robot Miss Streak 9 | . 2 9 5 . Penetration Max . | . . . . . Secondary Targets 4 | . . 3 1 . Max Gunslinging Chain 1 | . . 1 1 . Shots Hit Robots 300 | . 27 144 129 . Core Hits 107 | . 11 44 52 . Critical Kills 1 | . 1 . . . Critical Parts Destroyed 2 | . 1 . 1 . Critical Strikes 5 | . 2 1 2 . Burn 1 | . . . 1 . Destroy 3 | . 2 . 1 . Corrupt 1 | . . 1 . . Melee Attacks . | . . . . . Impact . | . . . . . Slashing . | . . . . . Piercing . | . . . . . Sneak Attacks . | . . . . . Combat Hostiles . | . . . . . Follow-up Attacks . | . . . . . Damage Inflicted 4836 | . 263 1853 2720 . Guns 3524 | . 260 1803 1461 . Cannons 874 | . . . 874 . Explosions 395 | . . 35 360 . Melee . | . . . . . Ramming 43 | . 3 15 25 . Kinetic 3393 | . 260 1651 1482 . Thermal 862 | . . 35 827 . Explosive 170 | . . . 170 . Electromagnetic 368 | . . 152 216 . Impact . | . . . . . Slashing . | . . . . . Piercing . | . . . . . Highest Corruption 4 | . . 1 . 4 Average Corruption 1 | . . 1 . 2 Corruption Purged . | . . . . . Corruption Blocked . | . . . . . Effects 5 | . . 2 . 3 Message Errors 2 | . . 2 . . Matter Fused 1 | . . . . 1 Parts Rejected 1 | . . . . 1 Data Loss (minor) 1 | . . . . 1 Overload Shots . | . . . . . Overflow Damage 52 | . . . 52 . Projectiles 5 | . . . 5 . Explosions 47 | . . . 47 . Melee . | . . . . . Knockbacks 3 | . . . 3 . Impact . | . . . . . Kinetic 3 | . . . 3 . Secondary . | . . . . . Self-Inflicted Damage 207 | . . . 207 . Shots 4 | . . . 4 . Rammed 8 | . 1 2 5 . Targets Rammed 10 | . 1 3 5 1 Kicked 1 | . . . . 1 Crushed 1 | . . 1 . . Highest Temperature 800 | . 12 204 800 12 Average Temperature 104 | . 7 44 205 7 Received Heat Transfer 1050 | . 96 261 504 189 Effects 23 | . . . 23 . Shutdowns 3 | . . . 3 . Energy Bleed 4 | . . . 4 . Interference 3 | . . . 3 . Matter Decay 2 | . . . 2 . Damage (minor) 2 | . . . 2 . Damage (major) 9 | . . . 9 . Siege Activations . | . . . . . Martial Activations . | . . . . . Shielding Activations . | . . . . . Robots Disrupted . | . . . . . Combat Hostiles . | . . . . . Robots Corrupted . | . . . . . Combat Hostiles . | . . . . . Parts Fried . | . . . . . Impact Corruptions . | . . . . . Robots Melted . | . . . . . Combat Hostiles . | . . . . . Parts Melted 2 | . . . 2 . Heat Transferred 1558 | . . 100 1458 . Parts Sabotaged . | . . . . . Parts Stolen . | . . . . . Parts Stripped . | . . . . . Power Chain Reactions 3 | . . 1 2 . Alert | -11 -10 -9 -8 -7 ------- Run | Yrd Mat Mat Mat Fac Maximum Alert Level 1 | . . 1 1 . Low Security (%) 93 | 100 100 86 96 100 Level 1 6 | . . 13 3 . Level 2 . | . . . . . Level 3 . | . . . . . Level 4 . | . . . . . Level 5 . | . . . . . High Security . | . . . . . Max Security . | . . . . . Peak Influence 222 | . 50 222 209 51 Initial 80 | . . 16 80 51 Average 82 | . 8 89 124 13 Influence Increases 1482 | . 107 606 679 90 Destroy 0b10 Robot/C 980 | . 80 440 460 . Destroy 0b10 Robot/NC 40 | . 5 25 10 . Destroy Leader 254 | . 22 120 112 . Successful Hack 2 | . . 2 . . Disable Machine 30 | . . . 30 . Destroy Structure 56 | . . 4 52 . Lose Combat Pursuer 120 | . . 15 15 90 Influence Decreases 1467 | . 67 454 756 190 Entered New Map 200 | . . 24 112 64 Time Decay 1052 | . 67 410 464 111 Lost Part 215 | . . 20 180 15 Squads Dispatched 12 | . 1 3 6 2 Investigation 1 | . . . 1 . Extermination 1 | . . . . 1 Reinforcement 10 | . 1 3 5 1 Assault . | . . . . . Garrison . | . . . . . Intercept . | . . . . . Searches Triggered . | . . . . . Construction Impeded 1 | . . . . 1 Haulers Reinforced . | . . . . . Active Scanning Responses . | . . . . . Cargo Convoy Interrupts . | . . . . . Stealth | -11 -10 -9 -8 -7 --------- Run | Yrd Mat Mat Mat Fac Distress Signals 9 | . . 4 3 2 Communications Jammed . | . . . . . Distress Signals . | . . . . . Times Spotted 92 | . 7 39 34 12 Peak Tracking Total 9 | . 2 5 4 9 Tactical Retreats 7 | . . 1 1 5 ECM-based Alert Blocks 3 | . . . . 3 Traps | -11 -10 -9 -8 -7 ------- Run | Yrd Mat Mat Mat Fac Traps Triggered 3 | . . 1 1 1 Indirectly . | . . . . . Trap Hack Attempts . | . . . . . Triggered . | . . . . . Disarmed . | . . . . . Reprogrammed . | . . . . . Reused . | . . . . . Traps Extracted . | . . . . . Installed . | . . . . . Triggered . | . . . . . Machines | -11 -10 -9 -8 -7 ---------- Run | Yrd Mat Mat Mat Fac Machines Disabled 2 | . . . 2 . Max in Single Turn 2 | . . . 2 . Machines Repaired . | . . . . . Machines Dismantled . | . . . . . Machines Sabotaged . | . . . . . Overloaded Fab Kills . | . . . . . Hacking | -11 -10 -9 -8 -7 --------- Run | Yrd Mat Mat Mat Fac Machines Accessed 1 | . . 1 . . Terminals . | . . . . . Fabricators . | . . . . . Repair Stations . | . . . . . Recycling Units . | . . . . . Scanalyzers 1 | . . 1 . . Garrison Access . | . . . . . Total Hacks 4 | . . 4 . . Successful 4 | . . 4 . . Failed . | . . . . . Catastrophic . | . . . . . Database Lockouts . | . . . . . Manual . | . . . . . Terminals . | . . . . . Fabricators . | . . . . . Repair Stations . | . . . . . Recycling Units . | . . . . . Scanalyzers 4 | . . 4 . . Garrison Access . | . . . . . Terminal Hacks . | . . . . . Fabricator Hacks . | . . . . . Repair Station Hacks . | . . . . . Recycling Unit Hacks . | . . . . . Scanalyzer 4 | . . 4 . . Retrieve Study 4 | . . 4 . . Garrison Access Hacks . | . . . . . Unauthorized Hacks . | . . . . . Terminals . | . . . . . Fabricators . | . . . . . Repair Stations . | . . . . . Recycling Units . | . . . . . Scanalyzers . | . . . . . Garrison Access . | . . . . . Data Cores Recovered . | . . . . . Used . | . . . . . Hacking Detections 1 | . . 1 . . Full Trace Events . | . . . . . Feedback Events . | . . . . . Feedback Blocked . | . . . . . Robot Schematics Acquired . | . . . . . Robots Built . | . . . . . Authchips . | . . . . . Time . | . . . . . Total Robot Build Rating . | . . . . . Part Schematics Acquired . | . . . . . Parts Built . | . . . . . Authchips . | . . . . . Time . | . . . . . Total Part Build Rating . | . . . . . Part Studies Acquired 4 | . . 4 . . Parts Repaired . | . . . . . Time . | . . . . . Parts Recycled . | . . . . . Recycled Matter . | . . . . . Retrieved Matter . | . . . . . Retrieved Components . | . . . . . Parts Scanalyzed . | . . . . . Part Schematics Acquired . | . . . . . Parts Damaged . | . . . . . Bothacking | -11 -10 -9 -8 -7 ------------ Run | Yrd Mat Mat Mat Fac Used RIF Installer . | . . . . . Robots Hacked . | . . . . . Non-combat . | . . . . . Combat . | . . . . . Robot Hacks Applied . | . . . . . Relay Couplers Released . | . . . . . Fabnet Peak Effective % . | . . . . . Robots Rewired . | . . . . . Allies Hacked . | . . . . . Hacks Repelled . | . . . . . Allies | -11 -10 -9 -8 -7 -------- Run | Yrd Mat Mat Mat Fac Total Allies . | . . . . . Largest Group . | . . . . . Highest-Rated Group . | . . . . . Highest-Rated Ally . | . . . . . Total Orders . | . . . . . Ally Attacks . | . . . . . Total Damage . | . . . . . Kills . | . . . . . Allies Corrupted . | . . . . . Allies Melted . | . . . . . Intel | -11 -10 -9 -8 -7 ------- Run | Yrd Mat Mat Mat Fac Active Infowar (turns) 21 | . . . . 21 ECM 21 | . . . . 21 Robot Analysis Total . | . . . . . Derelict Logs Recovered . | . . . . . Drone Launches . | . . . . . Drone Recoveries . | . . . . . Exploration | -11 -10 -9 -8 -7 ------------- Run | Yrd Mat Mat Mat Fac Turns Passed 3158 | 75 364 1211 1166 342 Spaces Moved 1538 | 48 185 603 425 277 Core 110 | 12 . . 11 87 Treads 1238 | 36 185 603 414 . Legs 190 | . . . . 190 Wheels . | . . . . . Hover . | . . . . . Flight . | . . . . . Fastest Speed 50 | 50 160 160 50 50 Average Speed 162 | 132 160 160 201 112 Slowest Speed 750 | 160 160 160 750 200 Overloaded Moves . | . . . . . Propulsion Burnouts . | . . . . . Robots Hopped . | . . . . . Potential Cave-ins . | . . . . . Cave-ins Triggered . | . . . . . Exploration Rate (%) 30 | 4 38 62 35 11 Regions Visited 4 Branch Regions . Pre-discovered Areas . | . . . . . Known Exits Taken . | . . . . . Unknown Exits Taken 4 | 1 1 1 1 . Scrap Searched . | . . . . . Spaces Dug . | . . . . . Terrain Destroyed 65 | . . . 65 . Melee . | . . . . . Projectile 16 | . . . 16 . AOE 49 | . . . 49 . Terrain Rammed . | . . . . . Walls Destroyed . | . . . . . Machines Disabled . | . . . . . Actions | -11 -10 -9 -8 -7 --------- Run | Yrd Mat Mat Mat Fac Total 1898 | 60 220 717 596 305 Wait 95 | . 15 13 52 15 Move 1534 | 47 184 602 424 277 Hop . | . . . . . Pick Up 47 | 7 2 16 17 5 Fast Attach . | . . . . . Attach 37 | 6 . 9 15 7 Detach . | . . . . . Swap 13 | . . 5 8 . Drop 12 | . . 7 5 . Fire 150 | . 18 62 70 . Melee . | . . . . . Ram 3 | . . . 3 . Kick 1 | . . . . 1 Crush 6 | . 1 3 2 . Escape Stasis . | . . . . . Rewire . | . . . . . Trap . | . . . . . Miscellaneous . | . . . . . Route ------- -11/Scrapyard -10/Materials (discovered 2 exits: *Mat / [*Min]) -9/Materials (discovered 2 exits: [*Mat] / [*Min]) -8/Materials (discovered 3 exits: [*Fac] / [*Sto x2]) -7/Factory History --------- Turn | Location | Event 2 | -11/Scrapyard | Met Revision 17 4 | -11/Scrapyard | Discovered new exit (range 15) 76 | -11/Scrapyard | Entered Materials 249 | -10/Materials | Discovered new exit (range 8) 305 | -10/Materials | Build established: Mutant 393 | -10/Materials | Discovered new exit (range 12) 440 | -10/Materials | Entered another Materials area 440 | -9/Materials | Evolved 2 slots: Weapon x2 816 | -9/Materials | Discovered new exit (range 9) 887 | -9/Materials | Build established: Gunner 1568 | -9/Materials | Discovered new exit (range 12) 1651 | -9/Materials | Entered another Materials area 1651 | -8/Materials | Evolved 2 slots: Utility x2 1879 | -8/Materials | Discovered new exit (range 15) 1956 | -8/Materials | Discovered new exit (range 16) 2720 | -8/Materials | Discovered new exit (range 4) 2743 | -8/Materials | Core integrity fell below 50% 2791 | -8/Materials | Lost 8 parts (1p2n1u4w) 2812 | -8/Materials | Core integrity fell below 20% 2817 | -8/Materials | Entered Factory 2817 | -7/Factory | Evolved 2 slots: Propulsion x1, Utility x1 2840 | -7/Factory | Lost 4 parts (1p3w) 3102 | -7/Factory | Core integrity fell below 50% 3110 | -7/Factory | Build established: Mutant 3135 | -7/Factory | Lost 3 parts (1p1n1u) 3159 | -7/Factory | Self-destructed Last Messages --------------- 03065_ Penetrated by Slug. 03073_ Kicked U-05 Engineer. 03074_ ALERT: Construction progress impeded, dispatching reinforcements to local area. 03076_ Titanium Leg destroyed. 03082_ System corrupted: Component data lost. 03086_ Slug penetrates Wall. 03094_ K-01 Serf cleans the Subcomponent Replicator. 03101_ K-01 Serf destroyed. 03101_ Core Analyzer destroyed. 03104_ Enh. Nuclear Core destroyed. 03106_ K-01 Serf collects debris. 03136_ System corrupted: Matter fused (-7). 03142_ Door malfunctions. 03150_ Acquired Arc Projector. 03156_ System corrupted: Adv. ECM Suite rejected. 03157_ Drone sends a signal. 03159_ Arc Projector destroyed. Map ----- +----------------------------------------------------+ | ????????????????????????????????????????????? | | ????????????????????????????????????????????? | | ????????????????????????????????????????????? | | ????????????????????????????????????????????? | | ????????????????????????????????????????????? | | ????????????????????????????????????????????? | | ????????????????????????????????????????????? | | ????????????????????????????????????????????? | | ????????????????????????????????????????????? | | ????????????????????????????????????????????? | | ????????????????????????????????????????????? | | ????????????????????????????????????????????? | | ????????????????????????????????????????????? | | ????????????????????????????????????????????? | | ????????????????????????????????????????????? | | ????????????????#####???????##??????????????? | | ???????????????## ?????? #??????????????? | | ??????????????? # "?? ?? ] #??????????????? | | ??????????????? # """ #??????????????? | | ??????????????? # """ / #??????????????? | | ??????????????? # #??????????????? | | ??????????????? # """"" #??????????????? | | ??????????????# # """"" #??????????????? | | ??????????????+ # """ !#??????????????? | | ??????????????# # #??????????????? | | ?############## # @ !! #??????????????? | | ?# !# # !! #??????????????? | | ?# # # p #??????????????? | | ?# # ######+#/#####??????????????? | | ?# ! # u #????????????????? | | ?# # #????????????????? | | ?#!! ! / """ """ k/ ????????????? | | ?#!! # """ """ ### "?????????? | | ?#!! # """ """ #????? ??????? | | ?# = # #??????????????? | | ?# # ################ | | ?# # | | ?# # | | ?############## | | ??????????????# """" """" """" """" """ """ | | ??????????????# """" """" """" """" """ """ | | ??????????????# """" """" """" """" """ """ | | ?????########## """" """" """" """" """ | | ?????# """" """" """" """" """ | | ?????# """" """" """" """" """ | | ?????# | | ?????# | | ?????# | | ?####### #################+############ | | # # #????????????????????????????# | +----------------------------------------------------+ Best States ------------- Heat Dissipation 53 Energy Generation 17 Energy Capacity 300 Matter Stores 300 Matter Capacity 300 Sight Range 16 Terrain Scan Density 10 ECM Strength 2 Evasion (%) 55 Core Analysis 6 Armor Integrity Analysis 30 Recoil Reduction 2 Item Schematics ----------------- None Robot Schematics ------------------ None Fabricated ------------ Nothing Repaired ---------- Nothing Studied --------- Hvy. EM Pulse Gun | -9/Materials | Hacked Hvy. Assault Rifle | -9/Materials | Hacked Autogun | -9/Materials | Hacked Assault Rifle | -9/Materials | Hacked Alien Tech Used ----------------- None Achievements -------------- None Challenges ------------ None Game ------ Seed TargetingPointyKatana Manual? 0 Play Time 00:19:30 Cumulative 39.6 hours Start 2025.11.03 @ 21:27:51 End 2025.11.05 @ 08:22:17 Sessions 3 Manual Loads 0 Difficulty Rogue Special Mode None Game No. 114 Rogue 114 Adventurer 0 Explorer 0 Win Type - Total 0 Types 0/0/0/0/0/0/0/0/0/0 Lore% 23 Gallery% 28 Achievement% 22 Wizard Run 0 Options --------- Layout 1 ASCII 0 Keyboard 0 Movement Numpad Keybinds 0 Fullscreen 2 Font 24/Smallcaps Map View 50x35 Zoom Use 0% Tactical HUD 1 Map Filters NONE Filters NONE Steam 1 RUN: b2f2b61f-7f25-45d1-b8c1-7b87301b3cd3